lending/lending_fUSD_20251021
["ID","MTS","AMOUNT","RATE_DAILY","PERIOD"]
[391996410,1761070234825,-336.8,0.00026321,2]
[391996411,1761070234835,-150.0,0.00026321,2]
[391996412,1761070234844,-150.0,0.00026321,2]
[391996413,1761070234854,-176.22,0.00026321,2]
[391996414,1761070234869,-150.0,0.00026321,2]
[391996415,1761070234879,-150.0,0.00026321,2]
[391996416,1761070234889,-168.4,0.00026321,2]
[391996417,1761070234899,-414.05,0.00026321,2]
[391996418,1761070234909,-150.0,0.00026321,2]
[391996419,1761070234919,-547.23,0.00026321,2]
[391996420,1761070234930,-150.0,0.00026321,2]
[391996421,1761070234939,-176.22,0.00026321,2]
[391996422,1761070234949,-150.0,0.00026321,2]
[391996423,1761070234959,-150.0,0.00026321,2]
[391996424,1761070234968,-150.0,0.00026321,2]
[391996425,1761070234978,-414.05,0.00026321,2]
[391996426,1761070234988,-168.4,0.00026321,2]
[391996427,1761070235001,-547.23,0.00026321,2]
[391996428,1761070235011,-150.0,0.00026321,2]
[391996429,1761070235022,-176.22,0.00026321,2]
[391996430,1761070235035,-547.23,0.00026321,2]
[391996431,1761070235045,-168.4,0.00026321,2]
[391996432,1761070235055,-150.0,0.00026321,2]
[391996433,1761070235065,-150.0,0.00026321,2]
[391996434,1761070235076,-379.86,0.00026321,2]
[391996435,1761070235087,-414.05,0.00026321,2]
[391996436,1761070235098,-176.22,0.00026321,2]
[391996437,1761070235109,-547.23,0.00026321,2]
[391996438,1761070235119,-428.61,0.00026321,2]
[391996439,1761070235129,-168.4,0.00026321,2]
[391996440,1761070235139,-150.0,0.00026321,2]
[391996441,1761070235149,-414.05,0.00026321,2]
[391996442,1761070235159,-547.23,0.00026321,2]
[391996443,1761070235170,-176.22,0.00026321,2]
[391996444,1761070235180,-547.23,0.00026321,2]
[391996445,1761070235191,-150.0,0.00026321,2]
[391996446,1761070235201,-168.4,0.00026321,2]
[391996447,1761070235212,-150.0,0.00026321,2]
[391996448,1761070235222,-414.05,0.00026321,2]
[391996449,1761070235232,-547.23,0.00026321,2]
[391996450,1761070235246,-547.23,0.00026321,2]
[391996451,1761070235257,-176.22,0.00026321,2]
[391996452,1761070235267,-168.4,0.00026321,2]
[391996453,1761070235278,-150.0,0.00026321,2]
[391996454,1761070235290,-414.05,0.00026321,2]
[391996455,1761070235299,-150.0,0.00026321,2]
[391996456,1761070235310,-547.23,0.00026321,2]
[391996457,1761070235320,-547.23,0.00026321,2]
[391996458,1761070235330,-176.22,0.00026321,2]
[391996459,1761070235339,-168.4,0.00026321,2]
[391996460,1761070235349,-150.0,0.00026321,2]
[391996461,1761070235358,-414.05,0.00026321,2]
[391996462,1761070235368,-5512.0,0.000264,5]
[391996463,1761070235379,-1408.0,0.000266,2]
[391996464,1761070235391,-327.67,0.00026676,2]
[391996465,1761070235401,-3483.68418549,0.00026767,2]
[391996466,1761070235411,-217.09912,0.00026799,2]
[391996467,1761070235421,-2500.0,0.000269,2]
[391996468,1761070235431,-500.0,0.00026999,2]
[391996469,1761070235444,-500.0,0.00026999,2]
[391996470,1761070235453,-21079.94360358,0.00027,2]
[391996471,1761070235463,-1018.24846008,0.00027,2]
[391996472,1761070235472,-4197.53809718,0.00027,2]
[391996473,1761070235482,-530.0,0.00027,2]
[391996474,1761070235492,-1000.0,0.00027,2]
[391996475,1761070235502,-1000.0,0.00027,9]
[391996476,1761070235512,-1000.0,0.00027,8]
[391996477,1761070235522,-823.53604624,0.00027,8]
[391996486,1761070237884,-161.92522945,0.00023065,2]
[391996487,1761070237894,-349.22601122,0.00023065,2]
[391996488,1761070237992,-24.57480915,0.00023065,2]
[391996489,1761070238003,-176.46395376,0.00027,8]
[391996490,1761070238014,-158.45607696,0.00027,7]
[391996491,1761070238045,-841.54392304,0.00027,7]
[391996492,1761070238056,-1024.0,0.00027,7]
[391996493,1761070238066,-1000.0,0.00027,6]
[391996494,1761070238075,-234.53055774,0.00027,2]
[391996495,1761070238085,-264.77,0.00027123,4]
[391996496,1761070238095,-1200.52,0.00027143,2]
[391996498,1761070238105,-1200.52,0.00027143,2]
[391996500,1761070238115,-1179.1594084,0.00027143,2]
[391996501,1761070238144,-919.38,0.00020976,2]
[391996502,1761070238156,-264.62,0.00020976,2]
[391996503,1761070238167,-161.7905916,0.00027143,2]
[391996504,1761070238177,-387.42,0.00027143,2]
[391996505,1761070238187,-547.23,0.00027143,2]
[391996506,1761070238197,-150.0,0.00027143,2]
[391996507,1761070238208,-414.05,0.00027143,2]
[391996509,1761070238218,-168.4,0.00027143,2]
[391996511,1761070238228,-357.49,0.00027143,2]
[391996513,1761070238238,-373.38179669,0.00027143,2]
[391996540,1761070239932,-424.512,0.00023976,2]
[391996541,1761070239942,-173.84820331,0.00027143,2]
[391996542,1761070239952,-168.4,0.00027143,2]
[391996543,1761070239962,-414.05,0.00027143,2]
[391996544,1761070239972,-547.23,0.00027143,2]
[391996545,1761070239982,-414.05,0.00027143,2]
[391996546,1761070239992,-168.4,0.00027143,2]
[391996547,1761070240003,-547.23,0.00027143,2]
[391996548,1761070240013,-168.4,0.00027143,2]
[391996549,1761070240023,-414.05,0.00027143,2]
[391996550,1761070240034,-547.23,0.00027143,2]
[391996551,1761070240045,-168.4,0.00027143,2]
[391996552,1761070240055,-547.23,0.00027143,2]
[391996553,1761070240066,-168.4,0.00027143,2]
[391996554,1761070240075,-1094.46,0.00027143,2]
[391996555,1761070240085,-547.23,0.00027143,2]
[391996556,1761070240095,-185.84,0.00027143,2]
[391996557,1761070240105,-278.82,0.00027258,2]
[391996558,1761070240115,-3956.96190943,0.00027297,2]
[391996559,1761070240125,-5000.0,0.00027297,2]
[391996560,1761070240139,-500.0,0.0002738,2]
[391996561,1761070240149,-500.0,0.0002738,2]
[391996562,1761070240159,-506.29907877,0.0002738,2]
[391996563,1761070240169,-500.0,0.0002738,2]
[391996564,1761070240179,-500.0,0.0002738,2]
[391996565,1761070240188,-11710.3460318,0.0002738,2]
[391996566,1761070240198,-4046.53121796,0.0002739,2]
[391996567,1761070240208,-7993.52072175,0.0002739,2]
[391996568,1761070240218,-3190.76649896,0.0002739,2]
[391996569,1761070240227,-300.0,0.00027397,7]
[391996570,1761070240236,-500.0,0.00027397,60]
[391996571,1761070240247,-1424.0,0.00027397,2]
[391996572,1761070240257,-510.82,0.00027397,2]
[391996573,1761070240266,-387.41,0.00027397,30]
[391996574,1761070240276,-239.26,0.00027397,2]
[391996575,1761070240286,-300.0,0.00027397,2]
[391996576,1761070240296,-1500.0,0.00027397,16]
[391996577,1761070240306,-1256.06,0.000274,7]
[391996578,1761070240316,-1063.97,0.000274,7]
[391996579,1761070240326,-746.65,0.000274,2]
[391996580,1761070240336,-500.0,0.00027452,60]
[391996581,1761070240346,-197.92181982,0.000275,2]
[391996582,1761070240356,-540.67197336,0.000275,2]
[391996583,1761070240366,-500.0,0.00027507,60]
[391996584,1761070240375,-500.0,0.00027561,60]
[391996585,1761070240385,-152.0,0.00027592,4]
[391996587,1761070240395,-180.14511981,0.00027613,2]
[391996588,1761070240405,-500.0,0.00027616,60]
[391996590,1761070240414,-500.0,0.00027671,60]
[391996592,1761070240424,-199.0,0.00027671,7]
[391996594,1761070240434,-500.0,0.00027726,60]
[391996596,1761070240443,-500.0,0.00027781,60]
[391996597,1761070240452,-3483.68418549,0.00027834,2]
[391996599,1761070240462,-500.0,0.00027835,60]
[391996600,1761070240471,-11710.3460318,0.00027848,2]
[391996601,1761070240481,-7764.2234038,0.00027858,2]
[391996602,1761070240492,-195.25595201,0.0002789,2]
[391996603,1761070240501,-500.0,0.0002789,60]
[391996604,1761070240512,-500.0,0.00027945,60]
[391996605,1761070240521,-199.0,0.00027945,8]
[391996606,1761070240535,-1200.52,0.00027965,2]
[391996607,1761070240545,-746.65,0.0002798,2]
[391996608,1761070240555,-500.0,0.00027989,14]
[391996609,1761070240565,-500.0,0.00027989,2]
[391996610,1761070240575,-746.65,0.0002799,2]
[391996611,1761070240585,-70262.0761906,0.0002799,2]
[391996612,1761070240594,-746.65,0.0002799,2]
[391996613,1761070240604,-181.71003806,0.00027999,15]
[391996614,1761070240614,-508.34817712,0.00027999,14]
[391996615,1761070240624,-545.48659225,0.00027999,14]
[391996616,1761070240633,-502.87251529,0.00027999,14]
[391996617,1761070240644,-500.0,0.00028,60]
[391996618,1761070240655,-6835.47963571,0.00028,2]
[391996619,1761070241114,-503.71024779,0.00028,2]
[391996620,1761070241127,-48602.68867412,0.00028,2]
[391996621,1761070241139,-5620.59954412,0.00028,2]
[391996624,1761070242864,-500.0,0.00023065,2]
[391996626,1761070242876,-500.0,0.00023065,2]
[391996627,1761070242886,-376.99173732,0.00023065,2]
[391996629,1761070242896,-41.01862278,0.00028,2]
[391996630,1761070243180,-736.00102635,0.00028,2]
[391996684,1761070529449,-200.0,0.0001663,2]
[391996685,1761070529472,-15.77110761,0.0001663,2]
[391996707,1761071270133,716.43309978,0.00013,15]
[391996708,1761071270161,5174.47913848,0.00013,15]
[391996711,1761071302084,387.52650582,7.888e-05,2]
[391996732,1761071437990,-324.86870733,0.000149,2]
[391996733,1761071438002,-2175.13129267,0.000149,2]
[391996734,1761071438011,-244.78028962,0.000149,2]
[391996735,1761071438022,-500.0,0.00014999,2]
[391996736,1761071438032,-365.44802298,0.00014999,2]
[391996737,1761071438042,-298.68578984,0.00014999,2]
[391996738,1761071438054,-500.0,0.00014999,2]
[391996739,1761071438063,-250.66784166,0.00014999,2]
[391996740,1761071438073,-500.0,0.00014999,2]
[391996741,1761071438083,-500.0,0.00014999,2]
[391996742,1761071438094,-666.93680127,0.00015,2]
[391996743,1761071438106,-2079.37886618,0.00015,2]
[391996744,1761071438118,-317.98127747,0.00015,2]
[391996745,1761071438131,-3360.9,0.00015,2]
[391996746,1761071438204,-394.14575585,0.00015,2]
[391996747,1761071438255,-5615.9987997,0.00015,2]
[391996748,1761071438268,-4004.46756001,0.00015,2]
[391996749,1761071438279,-1646.84,0.00015,2]
[391996763,1761071440116,-500.0,0.00014999,2]
[391996764,1761071440126,-3515.0,0.00015,2]
[391996765,1761071440171,-682.6349999,0.00015,2]
[391996766,1761071440183,-681.83397203,0.00015,2]
[391996767,1761071440194,-991755.57359694,0.00015,2]
[391996768,1761071440228,-1125.3462,0.00015,2]
[391996769,1761071440335,-1504.93841558,0.00015,2]
[391996770,1761071440381,-2243.7341794,0.00015,2]
[391996774,1761071446230,-582.3,0.000149,2]
[391996775,1761071446284,-1122.8403984,0.000149,2]
[391996776,1761071446447,-1455.17011765,0.000149,2]
[391996777,1761071446457,-1123.51181724,0.00015,2]
[391996778,1761071446467,-2283.36,0.00015,2]
[391996779,1761071446479,-739.1463797,0.00015,2]
[391996780,1761071446488,-1263.20362031,0.00015,2]
[391996781,1761071446502,-2187.2,0.00015,2]
[391996782,1761071446524,-639.22380711,0.00015,2]
[391996791,1761071504469,-209.35,0.000147,2]
[391996807,1761071612908,4625.89,0.00014001,2]
[391997176,1761072632241,-195.0,0.00014812,2]
[391997177,1761072632251,-304.33839512,0.00014856,2]
[391997178,1761072632260,-150.0,0.00014899,2]
[391997179,1761072632269,-1200.0,0.00014899,2]
[391997180,1761072632286,-1000.0,0.000149,2]
[391997181,1761072632296,-278.70824701,0.000149,2]
[391997182,1761072632306,-5927.52145087,0.000149,2]
[391997183,1761072632324,-485.45619794,0.000149,2]
[391997184,1761072632333,-7703.838631,0.000149,2]
[391997185,1761072632345,-1000.0,0.000149,2]
[391997186,1761072632356,-351.88272725,0.000149,2]
[391997187,1761072632366,-2500.0,0.000149,2]
[391997188,1761072632376,-207.94000424,0.000149,2]
[391997189,1761072632387,-1603.0,0.00014959,2]
[391997190,1761072632396,-502.0,0.00014959,2]
[391997191,1761072632406,-500.0,0.00014973,2]
[391997192,1761072632416,-500.0,0.00014973,2]
[391997193,1761072632426,-479.26697898,0.00014973,2]
[391997194,1761072632435,-502.20874764,0.00014973,2]
[391997195,1761072632445,-157.86485124,0.0001499,2]
[391997196,1761072632454,-387.02,0.00014998,2]
[391997197,1761072632463,-266.46495256,0.00014999,2]
[391997198,1761072632472,-500.0,0.00014999,2]
[391997199,1761072632482,-500.0,0.00014999,2]
[391997200,1761072632492,-500.0,0.00014999,2]
[391997201,1761072632501,-500.0,0.00014999,2]
[391997202,1761072632512,-500.0,0.00014999,2]
[391997204,1761072632521,-500.0,0.00014999,2]
[391997206,1761072632530,-500.0,0.00014999,2]
[391997207,1761072632540,-500.0,0.00014999,2]
[391997208,1761072632549,-105.94067266,0.00014999,2]
[391997210,1761072632573,-394.05932734,0.00014999,2]
[391997212,1761072632581,-500.0,0.00014999,2]
[391997214,1761072632591,-500.0,0.00014999,2]
[391997216,1761072632600,-223.54772005,0.00014999,2]
[391997218,1761072632611,-276.45227995,0.00014999,2]
[391997220,1761072632620,-500.0,0.00014999,2]
[391997222,1761072632630,-526.15038518,0.00014999,2]
[391997224,1761072632639,-500.0,0.00014999,2]
[391997226,1761072632649,-500.0,0.00014999,2]
[391997228,1761072632658,-500.0,0.00014999,2]
[391997229,1761072632667,-500.0,0.00014999,2]
[391997230,1761072632676,-500.0,0.00014999,2]
[391997231,1761072632687,-156.55040914,0.00014999,2]
[391997232,1761072632696,-500.0,0.00014999,2]
[391997233,1761072632705,-471.6905971,0.00014999,2]
[391997234,1761072632717,-28.3094029,0.00014999,2]
[391997235,1761072632727,-508.96696493,0.00014999,2]
[391997236,1761072632738,-258.90430235,0.00014999,2]
[391997237,1761072632749,-130.52123442,0.00014999,2]
[391997238,1761072632760,-213.36978417,0.00014999,2]
[391997239,1761072632770,-500.0,0.00014999,2]
[391997240,1761072632779,-320.1561879,0.00014999,2]
[391997241,1761072632790,-500.0,0.00014999,2]
[391997242,1761072632800,-500.0,0.00014999,2]
[391997243,1761072632810,-500.0,0.00014999,2]
[391997244,1761072632819,-500.0,0.00014999,2]
[391997245,1761072632828,-224.33769493,0.00014999,2]
[391997246,1761072632838,-500.0,0.00014999,2]
[391997247,1761072632847,-500.0,0.00014999,2]
[391997248,1761072632857,-500.0,0.00014999,2]
[391997249,1761072632866,-500.0,0.00014999,2]
[391997250,1761072632875,-500.0,0.00014999,2]
[391997251,1761072632886,-169.0770308,0.00014999,2]
[391997252,1761072632895,-500.0,0.00014999,2]
[391997253,1761072632905,-4268.0593022,0.00015,2]
[391997254,1761072632916,-4024.933071,0.00015,2]
[391997255,1761072632928,-614.37390575,0.00015,2]
[391997256,1761072632943,-601.00408292,0.00015,2]
[391997257,1761072632962,-560.56,0.00015,2]
[391997262,1761072638191,-6124.86764287,0.00015,2]
[391997263,1761072638203,-1240.66059968,0.00015,2]
[391997264,1761072638244,-28670.84891698,0.00015,2]
[391997265,1761072638313,-981.36511929,0.00015,2]
[391997266,1761072638325,-142371.79144848,0.00015,2]
[391997267,1761072638370,-111600.0,0.00015,2]
[391997268,1761072638381,-2748.14959183,0.00015,2]
[391997269,1761072638392,-893.940995,0.00015,2]
[391997270,1761072638403,-383.86639291,0.00015,2]
[391997271,1761072638422,-16065.4587627,0.00015,2]
[391997284,1761072640263,-868.14495538,0.00015,2]
[391997285,1761072640276,-1719.3985112,0.00015,2]
[391997286,1761072640289,-1751.86965194,0.00015,2]
[391997287,1761072640369,-126352.80062107,0.00015,2]
[391997292,1761072640777,-0.00140528,0.00015,2]
[391997293,1761072640788,-2363.76082571,0.00015,2]
[391997294,1761072640799,-2201.03919672,0.00015,2]
[391997295,1761072640818,-991755.57359694,0.00015,2]
[391997296,1761072640829,-3560.44327035,0.00015,2]
[391997297,1761072640840,-2004.9062429,0.00015,2]
[391997298,1761072640859,-11730.73510143,0.00015,2]
[391997299,1761072640873,-1184.7,0.00015,2]
[391997300,1761072640886,-687.00000082,0.00015,2]
[391997301,1761072640897,-2240.55432072,0.00015,2]
[391997302,1761072640908,-3836.40042602,0.00015,2]
[391997304,1761072643214,-4870.45475283,0.00015,2]
[391997308,1761072643428,-298093.90064283,0.00015,2]
[391997309,1761072643481,-1758.01004104,0.00015,2]
[391997310,1761072643492,-13621.43901264,0.00015,2]
[391997311,1761072643505,-270.582,0.00015,2]
[391997572,1761072646295,-325.23878274,0.00015,2]
[391997578,1761072646349,-2776.13037857,0.00015,2]
[391997605,1761072646614,-1117.4588016,0.00015,2]
[391997606,1761072646722,-23645.622,0.00015,2]
[391997607,1761072679831,206.5,0.00010182,2]
[391997608,1761072680039,206.5,0.00010718,2]
[391997609,1761072680581,206.5,0.00011254,2]
[391997610,1761072680693,206.5,0.0001179,2]
[391997611,1761072680840,206.5,0.00012325,2]
[391997612,1761072681071,206.5,0.00012861,2]
[391997613,1761072681578,206.5,0.00013397,2]
[391997614,1761072681651,206.5,0.00013933,2]
[391997615,1761072689396,-158.8117156,0.00014469,2]
[391997687,1761072951486,-47.6882844,0.00014469,2]
[391997718,1761073244971,246.96891897,0.00013699,2]
[391997719,1761073245001,108.62108103,0.00013699,2]
[391998105,1761073831336,-1130.72670202,0.00014792,2]
[391998107,1761073831348,-69.27329798,0.00014792,2]
[391998108,1761073831357,-250.0,0.00014793,2]
[391998109,1761073831367,-150.0,0.00014793,2]
[391998110,1761073831376,-300.0,0.00014821,2]
[391998111,1761073831385,-38.43234202,0.000149,2]
[391998112,1761073831396,-428.0,0.000149,2]
[391998113,1761073831407,-385.9555348,0.000149,2]
[391998114,1761073831444,-147.61212318,0.000149,2]
[391998115,1761073831453,-158.81171576,0.000149,2]
[391998116,1761073831462,-357.78616106,0.000149,2]
[391998117,1761073831474,-642.21383894,0.000149,2]
[391998118,1761073831483,-1702.9754809,0.000149,2]
[391998119,1761073831494,-814.82102388,0.000149,2]
[391998120,1761073831505,-358.79633395,0.000149,2]
[391998121,1761073831519,-417.654328,0.000149,2]
[391998122,1761073831529,-626.25577195,0.000149,2]
[391998123,1761073831540,-3012.95182922,0.000149,2]
[391998124,1761073831550,-500.0,0.00014973,2]
[391998125,1761073831559,-500.0,0.00014973,2]
[391998126,1761073831569,-150.0,0.00014998,2]
[391998127,1761073831578,-500.0,0.00014999,2]
[391998137,1761073831788,-500.0,0.00014999,2]
[391998139,1761073831799,-500.0,0.00014999,2]
[391998141,1761073831809,-500.0,0.00014999,2]
[391998143,1761073831819,-502.58030001,0.00014999,2]
[391998145,1761073831828,-4755.67058849,0.00015,2]
[391998148,1761073831843,-29119.47367547,0.00015,2]
[391998150,1761073831854,-1254.41808677,0.00015,2]
[391998152,1761073831865,-1053.03409589,0.00015,2]
[391998155,1761073831884,-1118.96304471,0.00015,2]
[391998196,1761073840005,-372.10756581,0.00015,2]
[391998197,1761073840109,-4870.47650875,0.00015,2]
[391998199,1761073842540,-11281.59801343,0.00015,2]
[391998200,1761073842555,-117814.42539285,0.00015,2]
[391998201,1761073842566,-2045.51288467,0.00015,2]
[391998202,1761073842575,-5173.36066574,0.00015,2]
[391998203,1761073842584,-3825.2353024,0.00015,2]
[391998204,1761073842594,-4737.876699,0.00015,2]
[391998205,1761073842604,-157.79104,0.00015,2]
[391998206,1761073842619,-193.8115592,0.00015,2]
[391998207,1761073842628,-151.0,0.00015,2]
[391998208,1761073842638,-206.5,0.00015005,2]
[391998209,1761073842648,-200.0,0.00015239,2]
[391998210,1761073842658,-151.0,0.00015253,2]
[391998211,1761073842668,-213.72368549,0.00015521,2]
[391998212,1761073842678,-206.5,0.00015541,2]
[391998213,1761073842693,-206.5,0.00016077,2]
[391998215,1761073842703,-255.0,0.00016123,2]
[391998217,1761073842713,-500.0,0.0001615,2]
[391998218,1761073842723,-500.0,0.0001615,2]
[391998219,1761073842733,-195.0,0.00016269,2]
[391998220,1761073842742,-150.0,0.00016269,2]
[391998221,1761073842752,-195.0,0.00016269,2]
[391998222,1761073842761,-195.0,0.00016269,2]
[391998223,1761073842769,-250.0,0.00016271,2]
[391998224,1761073842776,-3000.0,0.00016271,2]
[391998225,1761073842783,-1066.91066206,0.00016378,2]
[391998226,1761073842789,-794.1,0.00016546,2]
[391998227,1761073842797,-206.5,0.00016613,2]
[391998228,1761073842805,-320.71232263,0.00016629,2]
[391998229,1761073842814,-416.81164487,0.00016629,2]
[391998230,1761073842823,-500.0,0.00016629,2]
[391998231,1761073842833,-500.0,0.00016629,2]
[391998232,1761073842843,-534.80884687,0.00016629,2]
[391998233,1761073842852,-184.22889239,0.0001663,2]
[391998234,1761073842861,-13422.6,0.0001663,2]
[391998235,1761073842871,-500.0,0.00016698,2]
[391998236,1761073842881,-157.79104,0.00017,2]
[391998237,1761073842891,-500.0,0.00017047,2]
[391998238,1761073842901,-500.0,0.00017047,2]
[391998239,1761073842910,-500.0,0.00017047,2]
[391998240,1761073842920,-6933.45476783,0.00017048,2]
[391998241,1761073842929,-206.5,0.00017148,2]
[391998242,1761073842942,-433.0,0.00017338,2]
[391998243,1761073842951,-150.0,0.00017458,2]
[391998244,1761073842961,-206.5,0.00017684,2]
[391998245,1761073842971,-150.0,0.00017733,2]
[391998246,1761073842985,-1057.1631866,0.00017755,2]
[391998247,1761073842995,-240.72584227,0.00018,2]
[391998248,1761073843005,-853.5253656,0.00018044,2]
[391998249,1761073843015,-206.5,0.0001822,2]
[391998250,1761073843025,-235.8849911,0.0001837,2]
[391998251,1761073843040,-300.0,0.00018628,2]
[391998252,1761073843055,-190.4472515,0.00018723,2]
[391998253,1761073843065,-206.5,0.00018756,2]
[391998254,1761073843074,-2548.0,0.00018849,2]
[391998255,1761073843084,-902.0,0.00018849,2]
[391998256,1761073843093,-189.54557616,0.00019,2]
[391998257,1761073843103,-1006.04916883,0.00019,2]
[391998258,1761073843113,-6933.45476783,0.00019197,2]
[391998259,1761073843123,-206.5,0.00019292,2]
[391998260,1761073843132,-666.0,0.00019336,3]
[391998261,1761073843141,-1000.0,0.00019594,2]
[391998262,1761073843150,-2000.0,0.000197,2]
[391998263,1761073843159,-204.58,0.00019806,2]
[391998264,1761073843170,-206.5,0.00019828,2]
[391998265,1761073843179,-12226.81933015,0.0002,2]
[391998266,1761073843190,-1658.33,0.00020029,2]
[391998267,1761073843200,-9915.25,0.00020041,2]
[391998268,1761073843209,-355.59,0.00020187,2]
[391998269,1761073843218,-250.0,0.00020189,2]
[391998270,1761073843227,-1710.98,0.00020195,2]
[391998271,1761073843236,-163.23,0.00020258,2]
[391998272,1761073843246,-206.5,0.00020364,2]
[391998273,1761073843255,-1129.3,0.00020548,2]
[391998274,1761073843265,-6933.45476783,0.00021345,2]
[391998275,1761073843274,-250.0,0.00021486,7]
[391998276,1761073843283,-161.91979003,0.0002162,2]
[391998277,1761073843294,-2548.0,0.00021849,2]
[391998278,1761073843303,-902.0,0.00021849,2]
[391998279,1761073843312,-500.0,0.00021917,2]
[391998280,1761073843322,-5000.0,0.00021918,2]
[391998281,1761073843331,-1000.0,0.00022043,2]
[391998282,1761073843340,-166.66,0.00022458,30]
[391998283,1761073843350,-500.0,0.00022815,2]
[391998284,1761073843359,-166.66,0.00022931,30]
[391998285,1761073843369,-166.67,0.00023024,2]
[391998286,1761073843379,-307.8973863,0.00023304,2]
[391998287,1761073843388,-196.31400942,0.00023311,2]
[391998288,1761073843398,-2000.0,0.000234,2]
[391998289,1761073843407,-166.66,0.00023404,30]
[391998290,1761073843417,-6933.45476783,0.00023493,2]
[391998291,1761073843427,-163.23,0.00023634,2]
[391998292,1761073843437,-506.98,0.00023836,2]
[391998293,1761073843447,-176.22,0.00023856,2]
[391998294,1761073843456,-168.4,0.00023856,2]
[391998295,1761073843466,-414.05,0.00023856,2]
[391998296,1761073843475,-166.66,0.00023877,30]
[391998297,1761073843485,-166.66,0.00024349,30]
[391998298,1761073843495,-1000.0,0.00024492,2]
[391998299,1761073843504,-153.0,0.00024495,2]
[391998300,1761073843514,-153.0,0.00024495,2]
[391998301,1761073843523,-153.0,0.00024497,2]
[391998302,1761073843533,-153.0,0.00024497,2]
[391998303,1761073843543,-153.0,0.00024497,2]
[391998304,1761073843553,-153.0,0.00024497,2]
[391998305,1761073843562,-153.0,0.00024497,2]
[391998306,1761073843572,-153.0,0.00024497,2]
[391998307,1761073843581,-153.0,0.00024497,2]
[391998308,1761073843590,-153.0,0.00024508,2]
[391998309,1761073843599,-153.0,0.00024508,2]
[391998310,1761073843613,-153.0,0.00024508,2]
[391998311,1761073843622,-153.0,0.00024508,2]
[391998312,1761073843631,-179.44,0.00024658,2]
[391998313,1761073843641,-1000.0,0.00024658,2]
[391998314,1761073843652,-166.66,0.00024822,30]
[391998315,1761073843661,-2548.0,0.00024849,2]
[391998316,1761073843670,-902.0,0.00024849,2]
[391998317,1761073843680,-1200.52,0.00024856,2]
[391998318,1761073843693,-307.8973863,0.00024866,2]
[391998319,1761073843703,-12086.640166,0.00025632,2]
[391998320,1761073843712,-6933.45476783,0.00025642,2]
[391998321,1761073843722,-152.0,0.00026159,3]
[391998322,1761073843731,-1106.0,0.00026305,7]
[391998323,1761073843741,-168.0,0.00026312,2]
[391998324,1761073843749,-168.0,0.00026326,2]
[391998325,1761073843762,-168.0,0.00026391,2]
[391998326,1761073843772,-307.8973863,0.00026427,2]
[391998327,1761073843781,-2009.363352,0.000266,2]
[391998328,1761073843791,-355.59,0.00026676,2]
[391998329,1761073843800,-12086.640166,0.00026689,2]
[391998330,1761073843810,-168.0,0.00026699,2]
[391998331,1761073843819,-1106.0,0.00026751,2]
[391998332,1761073843828,-5771.67988392,0.00026827,2]
[391998333,1761073843838,-475.11,0.00026864,2]
[391998334,1761073843847,-1106.0,0.00026913,2]
[391998335,1761073843856,-1106.0,0.00026927,2]
[391998336,1761073843866,-1000.0,0.00026942,2]
[391998337,1761073843875,-1106.0,0.00026974,2]